bitfinex/quotes_SOLUSD_20251117
["timestamp","ask_amount","ask_price","bid_price","bid_amount"]
[1763392493895,0.2,139.08,139.03,13.19880615]
[1763392494239,0.2,139.08,139.04,12.51880615]
[1763392494593,0.2,139.08,139.04,13.19880615]
[1763392495186,0.2,139.08,139.06,12.51880615]
[1763392495416,13.21880615,139.07,138.99,0.68]
[1763392495620,13.21880615,139.07,139.02,12.51880615]
[1763392495922,12.51880615,139.06,139.02,12.51880615]
[1763392496100,12.71880615,139.08,139.03,13.19880615]
[1763392496411,12.71880615,139.08,139.06,12.51880615]
[1763392496412,0.2,139.08,139.06,12.51880615]
[1763392497014,0.2,139.08,139.07,13.19880615]
[1763392497184,0.2,139.08,139.06,12.51880615]
[1763392497686,0.2,139.08,139.04,0.68]
[1763392497884,0.2,139.08,139.02,0.68]
[1763392498100,12.71880615,139.08,139.03,12.51880615]
[1763392498298,12.71880615,139.08,139.02,0.68]
[1763392498299,0.2,139.08,139.06,12.51880615]
[1763392498510,0.2,139.08,139.07,12.51880615]
[1763392498803,0.2,139.08,139.06,12.51880615]
[1763392499331,0.2,139.08,139.06,13.19880615]
[1763392499701,0.2,139.08,139.01,4.5]
[1763392499925,0.2,139.08,139.06,12.51880615]
[1763392500103,0.2,139.08,139.07,12.51880615]
[1763392500301,18.0,139.18,139.07,12.51880615]
[1763392500520,18.0,139.18,139.04,1.39921749]
[1763392500521,4.5,139.16,139.12,12.51880615]
[1763392501032,7.18278207,139.14,139.09,7.18278207]
[1763392501231,7.18278207,139.11,139.03,0.68]
[1763392501401,7.18278207,139.1,139.05,7.18278207]
[1763392501600,7.18278207,139.08,139.03,7.86278207]
[1763392501925,18.12096,139.08,139.02,7.18278207]
[1763392502112,4.5,139.11,139.05,7.18278207]
[1763392502311,22.62096,139.11,139.06,7.18278207]
[1763392502518,4.5,139.11,139.08,7.18278207]
[1763392502827,4.5,139.11,139.04,7.18278207]
[1763392502828,11.68278207,139.15,139.1,7.18278207]
[1763392503032,11.68278207,139.15,139.12,7.18278207]
[1763392503033,4.5,139.15,139.12,7.18278207]
[1763392503210,4.5,139.15,139.1,7.18278207]
[1763392503527,7.18278207,139.11,139.06,7.86278207]
[1763392503831,7.88278207,139.14,139.09,7.18278207]
[1763392504132,7.18278207,139.14,139.07,0.68]
[1763392504337,7.88278207,139.14,139.1,7.18278207]
[1763392504653,4.5,139.15,139.12,7.18278207]
[1763392504831,4.5,139.15,139.07,0.68]
[1763392505138,0.2,139.17,139.14,7.18278207]
[1763392505324,0.2,139.17,139.16,7.18278207]
[1763392505700,0.2,139.17,139.09,0.71895894]
[1763392505701,0.2,139.17,139.11,0.68]
[1763392505925,0.2,139.17,139.1,0.68]
[1763392506131,0.2,139.17,139.09,4.5]
[1763392506132,7.18278207,139.14,139.09,7.18278207]
[1763392506303,7.18278207,139.13,139.07,0.7]
[1763392506501,7.18278207,139.14,139.09,7.18278207]
[1763392506698,7.18278207,139.14,139.06,7.18278207]
[1763392506699,7.18278207,139.11,139.06,7.18278207]
[1763392506930,7.18278207,139.08,139.03,7.18278207]
[1763392507130,7.18278207,139.07,139.01,7.88278207]
[1763392507634,7.18278207,139.05,138.98,0.7]
[1763392507834,7.18278207,139.03,138.98,7.18278207]
[1763392508142,7.18278207,139.05,138.99,0.7]
[1763392508706,4.5,139.08,139.02,7.18278207]
[1763392508911,4.5,139.08,138.99,0.7]
[1763392508912,7.18278207,139.06,139.01,7.18278207]
[1763392509105,7.18278207,139.05,139.0,7.18278207]
[1763392509321,7.18278207,139.06,139.01,7.18278207]
[1763392509910,0.7,139.05,139.01,7.18278207]
[1763392510112,7.18278207,139.05,139.0,7.18278207]
[1763392510353,7.18278207,139.06,139.02,7.18278207]
[1763392510513,0.7,139.07,139.01,7.18278207]
[1763392510848,9.78882769,139.06,138.98,7.18278207]
[1763392511150,0.7,139.07,138.99,7.18278207]
[1763392511151,7.18278207,139.04,138.99,7.18278207]
[1763392511444,0.7,139.07,139.02,7.18278207]
[1763392511618,7.18278207,139.05,139.0,7.18278207]
[1763392511823,7.18278207,139.03,138.98,7.18278207]
[1763392512343,7.18278207,139.04,138.99,7.88278207]
[1763392512546,7.18278207,139.04,138.99,7.18278207]
[1763392513045,7.18278207,139.04,138.99,7.88278207]
[1763392513357,7.18278207,139.04,138.94,18.12096]
[1763392513358,7.18278207,139.07,139.02,7.18278207]
[1763392513738,5.2,139.08,139.03,7.18278207]
[1763392513930,7.88278207,139.07,139.02,7.18278207]
[1763392514123,7.18278207,139.05,138.97,0.7]
[1763392514452,4.5,139.08,138.97,0.7]
[1763392514626,4.5,139.08,139.03,7.18278207]
[1763392514829,11.68278207,139.08,139.03,7.18278207]
[1763392515024,4.5,139.08,139.04,7.18278207]
[1763392515225,4.5,139.08,138.98,27.90978769]
[1763392515461,11.68278207,139.08,139.03,7.18278207]
[1763392515760,11.68278207,139.08,139.01,7.18278207]
[1763392515761,7.18278207,139.06,139.01,7.18278207]
[1763392515927,7.18278207,139.05,138.97,4.5]
[1763392516131,4.5,139.08,138.97,4.5]
[1763392516132,7.18278207,139.04,138.99,7.18278207]
[1763392516352,7.18278207,139.01,138.94,0.7]
[1763392516668,4.5,139.02,138.94,0.7]
[1763392516958,4.5,139.02,138.98,7.18278207]
[1763392517151,4.5,139.02,138.99,7.18278207]
[1763392518023,7.18278207,139.05,139.0,7.85278207]
[1763392518224,7.18278207,139.07,139.02,7.18278207]
[1763392518446,4.5,139.08,139.05,7.18278207]
[1763392518631,4.5,139.08,139.01,0.67]
[1763392518632,7.18278207,139.14,139.07,7.18278207]
[1763392518831,7.18278207,139.13,139.09,7.18278207]
[1763392519127,7.18278207,139.1,138.99,0.67]
[1763392519336,18.82096,139.12,138.99,0.67]
[1763392519536,7.18278207,139.09,139.04,7.18278207]
[1763392519826,0.7,139.11,139.05,7.18278207]
[1763392519827,7.18278207,139.1,139.05,7.18278207]
[1763392520245,7.18278207,139.06,139.01,7.18278207]
[1763392520641,7.18278207,139.07,139.02,7.18278207]
[1763392520837,4.5,139.09,139.04,7.18278207]
[1763392521157,7.18278207,139.12,139.07,7.18278207]
[1763392521339,4.5,139.13,139.09,7.18278207]
[1763392521537,4.5,139.13,139.11,7.18278207]
[1763392521737,12.58278207,139.17,139.12,7.18278207]
[1763392522054,25.30374207,139.13,139.0,0.67]
[1763392522238,4.5,139.12,139.04,7.18278207]
[1763392522444,7.18278207,139.09,139.04,7.18278207]
[1763392522642,7.18278207,139.09,139.01,0.67]
[1763392522956,7.18278207,139.1,139.05,7.18278207]
[1763392523135,7.18278207,139.1,139.01,0.67]
[1763392523337,7.88278207,139.1,139.04,7.18278207]
[1763392523653,4.5,139.12,139.01,0.67]
[1763392523654,7.18278207,139.08,139.01,0.67]
[1763392523852,7.18278207,139.03,138.95,0.67]
[1763392524170,7.18278207,139.01,138.96,7.18278207]
[1763392524328,25.30374207,139.04,138.98,7.18278207]
[1763392524528,7.18278207,139.0,138.91,0.67]
[1763392524756,7.18278207,139.01,138.96,7.18278207]
[1763392525141,0.7,139.02,138.96,7.85278207]
[1763392525458,7.18278207,139.01,138.93,0.67]
[1763392525756,4.5,139.01,138.95,7.18278207]
[1763392525941,7.18278207,139.0,138.95,7.18278207]
[1763392526136,7.18278207,138.99,138.94,7.18278207]
[1763392526332,5.2,139.01,138.95,7.18278207]
[1763392526333,7.18278207,139.0,138.95,7.18278207]
[1763392526554,0.7,139.06,138.99,7.18278207]
[1763392526760,4.5,139.07,139.01,7.18278207]
[1763392526963,7.18278207,139.06,138.96,7.18278207]
[1763392527170,0.7,139.06,139.01,7.18278207]
[1763392527356,0.7,139.05,138.97,0.67]
[1763392527671,7.18278207,139.06,139.01,7.18278207]
[1763392527970,11.68278207,139.07,139.02,7.18278207]
[1763392528174,7.18278207,139.06,139.01,7.18278207]
[1763392528573,5.2,139.07,139.0,7.18278207]
[1763392528574,7.88278207,139.05,139.0,7.18278207]
[1763392528779,7.18278207,139.04,138.99,7.18278207]
[1763392528978,4.5,139.07,138.96,0.67]
[1763392528979,0.7,139.03,138.96,0.67]
[1763392529191,7.18278207,139.02,138.97,7.18278207]
[1763392529475,7.18278207,139.05,138.98,0.67]
[1763392529681,7.18278207,139.06,139.01,7.18278207]
[1763392529848,11.68278207,139.07,139.02,7.18278207]
[1763392530245,12.38278207,139.07,139.02,7.18278207]
[1763392530773,0.7,139.06,139.02,7.18278207]
[1763392530957,12.38278207,139.07,139.02,7.18278207]
[1763392531157,7.88278207,139.06,139.01,7.18278207]
[1763392531368,0.7,139.06,139.01,7.18278207]
[1763392531570,0.7,139.06,138.95,18.12096]
[1763392531571,0.7,139.06,138.99,7.18278207]
[1763392531796,7.18278207,139.02,138.95,0.67]
[1763392532073,7.18278207,139.0,138.95,0.67]
[1763392532262,7.88278207,139.0,138.95,7.18278207]
[1763392532472,7.88278207,139.0,138.95,7.85278207]
[1763392532671,7.18278207,139.0,138.92,0.67]
[1763392532858,7.18278207,139.0,138.95,7.18278207]
[1763392533061,4.5,139.01,138.95,7.18278207]
[1763392533373,7.18278207,138.98,138.9,0.12]
[1763392533581,0.7,139.0,138.94,7.18278207]
[1763392533750,7.18993001,139.09,138.97,7.18278207]
[1763392533955,5.98894903,139.11,139.0,7.18278207]
[1763392533956,11.68278207,139.05,139.0,7.18278207]
[1763392534260,4.5,139.07,139.03,7.18278207]
[1763392534463,4.5,139.07,138.96,7.18278207]
[1763392534464,0.7,139.16,139.06,7.18278207]
[1763392534655,7.88278207,139.16,139.11,7.18278207]
[1763392534861,0.7,139.16,139.13,7.18278207]
[1763392535147,0.7,139.15,139.09,7.18278207]
[1763392535370,7.88278207,139.15,139.1,7.18278207]
[1763392535585,0.7,139.15,139.11,7.18278207]
[1763392535767,7.18278207,139.15,139.1,7.18278207]
[1763392536087,0.7,139.14,139.1,7.18278207]
[1763392536278,0.7,139.14,139.11,7.18278207]
[1763392536481,18.12096,139.12,139.04,7.18278207]
[1763392536782,18.12096,139.12,139.09,7.18278207]
[1763392536973,0.68,139.14,139.1,7.18278207]
[1763392537155,0.68,139.14,139.11,7.18278207]
[1763392537362,7.86278207,139.14,139.09,7.18278207]
[1763392537556,7.18278207,139.13,139.02,0.66]
[1763392537780,7.18278207,139.12,139.07,7.18278207]
[1763392537955,0.68,139.12,139.07,7.18278207]
[1763392538167,0.68,139.11,139.08,7.18278207]
[1763392538368,0.68,139.11,139.03,0.66]
[1763392538604,0.68,139.11,138.99,0.66]
[1763392538605,7.18278207,139.08,138.99,0.66]
[1763392538977,7.18278207,139.06,139.01,7.18278207]
[1763392539204,0.68,139.05,139.01,7.18278207]
[1763392539681,7.18278207,139.04,138.99,7.18278207]
[1763392539881,0.68,139.05,139.01,7.18278207]
[1763392540094,7.18278207,139.04,138.99,7.18278207]
[1763392540293,7.18278207,139.03,138.98,7.18278207]
[1763392540807,7.86278207,139.02,138.97,7.18278207]
[1763392541493,4.5,139.05,139.0,7.18278207]
[1763392541694,0.68,139.04,138.93,18.12096]
[1763392541900,7.18278207,139.02,138.97,7.18278207]
[1763392542078,0.68,139.04,138.96,7.18278207]
[1763392542278,18.12096,139.02,138.97,7.18278207]
[1763392542478,7.86278207,139.03,138.98,7.18278207]
[1763392542678,7.86278207,139.02,138.97,7.18278207]
[1763392542890,7.86278207,139.03,138.95,0.66]
[1763392543199,7.18278207,139.01,138.92,0.66]
[1763392543401,7.18278207,139.01,138.96,7.18278207]
[1763392543773,7.18278207,139.01,138.92,0.66]
[1763392543774,7.86278207,139.0,138.95,7.18278207]
[1763392543978,0.68,138.99,138.95,7.18278207]
[1763392544184,0.68,138.99,138.92,0.66]
[1763392544386,7.18278207,138.96,138.9,0.12]
[1763392544592,7.18278207,138.95,138.9,7.30278207]
[1763392544805,7.18278207,138.92,138.9,0.12]
[1763392544988,0.68,138.94,138.9,0.12]
[1763392545190,7.18278207,138.92,138.9,0.12]
[1763392545801,7.18278207,138.93,138.9,0.12]
[1763392546010,7.86278207,138.92,138.9,0.12]
[1763392546310,22.60096,138.95,138.9,0.12]
[1763392546311,7.86278207,138.94,138.9,0.12]
[1763392546480,0.68,138.94,138.9,0.12]
[1763392546691,7.18278207,138.92,138.9,0.12]
[1763392546882,7.18278207,138.91,138.86,0.1]
[1763392547090,7.18278207,138.89,138.86,0.1]
[1763392547304,7.18278207,138.87,138.86,0.1]
[1763392547788,7.18278207,138.88,138.86,0.1]
[1763392547985,0.68,138.88,138.86,0.1]
[1763392548199,7.86278207,138.88,138.86,0.1]
[1763392548421,22.60096,138.9,138.86,7.28278207]
[1763392548723,28.86278207,138.96,138.86,7.28278207]
[1763392548724,0.68,138.96,138.89,7.18278207]
[1763392549023,7.18278207,138.98,138.94,7.18278207]
[1763392549186,4.5,138.99,138.95,7.18278207]
[1763392549383,2.0,139.07,138.89,9.78882769]
[1763392549384,0.68,139.02,138.97,7.18278207]
[1763392549621,0.68,139.11,139.01,7.18278207]
[1763392549784,7.18278207,139.1,138.98,1.37952798]
[1763392549989,0.68,139.11,139.02,7.18278207]
[1763392550291,7.18278207,139.08,138.99,0.66]
[1763392550490,7.18278207,139.05,138.96,7.84278207]
[1763392550712,7.18278207,139.03,138.98,7.18278207]
[1763392550910,7.18278207,139.05,139.0,7.18278207]
[1763392551110,18.12096,139.06,138.97,0.66]
[1763392551111,0.68,139.11,139.03,7.18278207]
[1763392551316,25.30374207,139.08,139.03,7.18278207]
[1763392551512,18.12096,139.08,139.04,7.18278207]
[1763392551715,7.18278207,139.09,139.04,7.18278207]
[1763392551913,7.86278207,139.08,139.0,0.66]
[1763392552113,7.18278207,139.07,139.02,7.18278207]
[1763392552516,7.18278207,139.06,139.0,0.66]
[1763392552816,0.68,139.08,139.0,0.66]
[1763392553015,0.68,139.08,138.95,4.5]
[1763392553016,7.18278207,139.05,138.99,7.18278207]
[1763392553232,7.18278207,139.04,138.98,7.18278207]
[1763392553530,7.18278207,139.03,138.98,7.18278207]
[1763392554136,11.66278207,139.06,139.0,7.18278207]
[1763392554364,4.48,139.06,139.02,7.18278207]
[1763392554541,7.18278207,139.09,139.04,7.18278207]
[1763392554746,25.30374207,139.09,139.04,7.18278207]
[1763392555044,7.18278207,139.07,139.01,7.18278207]
[1763392555210,7.18278207,139.08,139.03,7.18278207]
[1763392555412,7.18278207,139.09,139.04,7.84278207]
[1763392555738,18.12096,139.09,139.04,7.84278207]
[1763392555941,25.30374207,139.09,139.04,7.84278207]
[1763392556136,4.48,139.12,139.07,7.18278207]
[1763392556338,7.18278207,139.1,138.99,0.66]
[1763392556522,7.18278207,139.09,139.04,7.18278207]
[1763392556856,5.16,139.12,139.04,7.18278207]
[1763392557054,7.18278207,139.09,139.04,7.18278207]
[1763392557342,4.48,139.12,139.05,7.18278207]
[1763392557547,4.48,139.12,139.08,7.18278207]
[1763392558049,9.98882769,139.17,139.1,7.18278207]
[1763392558050,0.88,139.17,139.1,7.18278207]
[1763392558283,7.18278207,139.16,139.1,7.18278207]
[1763392558501,8.06278207,139.17,139.11,7.18278207]
[1763392558781,19.00096,139.17,139.11,7.18278207]
[1763392559138,19.00096,139.17,139.1,7.84278207]
[1763392559345,7.18278207,139.15,139.1,7.84278207]
[1763392559750,7.18278207,139.15,139.1,7.18278207]
[1763392559976,7.18278207,139.15,139.1,7.84278207]
[1763392560275,0.2,139.17,139.13,7.18278207]
[1763392560488,7.18278207,139.15,139.1,7.18278207]
[1763392560790,7.18278207,139.11,138.97,0.71957976]
[1763392560990,22.60096,139.11,139.03,0.66]
[1763392561144,29.78374207,139.11,139.03,0.66]
[1763392561346,7.18278207,139.1,139.05,7.18278207]
[1763392561578,22.60096,139.11,139.04,7.18278207]
[1763392561746,0.88,139.17,139.05,0.66]
[1763392561949,7.18278207,139.15,139.1,7.18278207]
[1763392562175,7.18278207,139.16,139.11,7.18278207]
[1763392562382,7.18278207,139.14,139.09,7.18278207]
[1763392562688,0.2,139.17,139.13,7.18278207]
[1763392562854,0.2,139.17,139.14,12.50188421]
[1763392563048,0.88,139.17,139.08,0.66]
[1763392563264,12.50188421,139.14,139.09,12.50188421]
[1763392563594,12.50188421,139.14,139.1,12.50188421]
[1763392563984,19.00096,139.17,139.11,13.16188421]
[1763392564172,18.32096,139.17,139.12,13.16188421]
[1763392564376,0.2,139.17,139.13,12.50188421]
[1763392564697,0.2,139.17,139.16,12.50188421]
[1763392565008,0.2,139.2,139.16,12.50188421]
[1763392565158,12.50188421,139.3,139.19,25.00376842]
[1763392565358,12.50188421,139.31,139.2,13.22027501]
[1763392565697,4.48,139.35,139.26,12.50188421]
[1763392565871,4.48,139.35,139.25,12.50188421]
[1763392566065,12.50188421,139.28,139.18,0.66]
[1763392566261,12.50188421,139.24,139.17,4.48]
[1763392566683,12.50188421,139.24,139.18,12.50188421]
[1763392566881,18.12096,139.27,139.12,14.26882769]
[1763392566882,18.12096,139.27,139.2,12.50188421]
[1763392567074,4.48,139.34,139.25,12.50188421]
[1763392567271,4.48,139.34,139.27,12.50188421]
[1763392567461,12.50188421,139.32,139.2,16.98188421]
[1763392567668,12.50188421,139.31,139.26,12.50188421]
[1763392567867,12.50188421,139.31,139.25,12.50188421]
[1763392568073,4.48,139.34,139.27,12.50188421]
[1763392568371,12.50188421,139.34,139.29,12.50188421]
[1763392568687,12.50188421,139.33,139.21,18.84096]
[1763392568874,18.12096,139.34,139.22,0.7182876]
[1763392569079,4.48,139.36,139.22,12.50188421]
[1763392569080,12.50188421,139.28,139.22,12.50188421]
[1763392569466,4.48,139.36,139.24,12.50188421]
[1763392569785,12.50188421,139.29,139.24,12.50188421]
[1763392569989,12.50188421,139.29,139.23,12.50188421]
[1763392570176,18.12096,139.31,139.23,12.50188421]
[1763392570371,18.12096,139.31,139.16,1.43859729]
[1763392570372,12.50188421,139.25,139.16,0.72]
[1763392570561,12.50188421,139.24,139.16,0.72]
[1763392570782,12.50188421,139.23,139.17,12.50188421]
[1763392570984,18.12096,139.25,139.09,0.72]
[1763392570985,18.12096,139.22,139.09,0.72]
[1763392571192,18.12096,139.25,139.09,0.72]
[1763392571193,12.50188421,139.18,139.12,12.50188421]
[1763392571373,18.12096,139.21,139.09,12.50188421]
[1763392571374,12.50188421,139.15,139.09,12.50188421]
[1763392571702,12.50188421,139.13,139.08,12.50188421]
[1763392571899,12.50188421,139.13,139.03,4.48]
[1763392571900,9.78882769,139.16,139.06,12.50188421]
[1763392572064,12.50188421,139.12,139.06,12.50188421]
[1763392572274,12.50188421,139.1,139.02,0.72]
[1763392572467,18.12096,139.13,139.05,12.50188421]
[1763392572670,12.50188421,139.1,139.05,12.50188421]
[1763392572897,12.50188421,139.1,139.04,12.50188421]
[1763392573099,18.12096,139.13,139.02,0.72]
[1763392573100,12.50188421,139.11,139.02,0.72]
[1763392573317,18.12096,139.14,139.02,0.72]
[1763392573487,12.50188421,139.13,139.02,0.72]
[1763392573841,27.90978769,139.15,139.06,12.50188421]
[1763392573998,12.50188421,139.1,139.02,0.72]
[1763392574201,18.12096,139.12,139.06,12.50188421]
[1763392574399,12.50188421,139.08,138.96,0.72]
[1763392574591,18.12096,139.07,138.96,0.72]
[1763392574792,12.50188421,139.03,138.98,12.50188421]
[1763392574993,4.48,139.06,139.0,12.50188421]
[1763392574994,12.50188421,139.05,139.0,12.50188421]
[1763392575203,16.98188421,139.06,138.96,0.72]
[1763392575523,16.98188421,139.06,139.0,12.50188421]
[1763392575731,4.48,139.06,139.01,12.50188421]
[1763392576090,30.62284421,139.08,139.02,12.50188421]
[1763392576295,12.50188421,139.2,139.07,12.50188421]
[1763392576622,0.63,139.27,139.07,12.50188421]
[1763392576623,5.78840833,139.21,139.15,12.50188421]
[1763392576947,5.78840833,139.21,139.1,12.50188421]
[1763392576948,12.50188421,139.22,139.17,12.50188421]
[1763392577092,12.50188421,139.2,139.1,12.50188421]
[1763392577294,12.50188421,139.2,139.15,12.50188421]
[1763392577620,12.50188421,139.19,139.14,12.50188421]
[1763392577828,12.50188421,139.2,139.15,12.50188421]
[1763392578113,4.48,139.23,139.16,12.50188421]
[1763392578323,12.50188421,139.2,139.09,5.17]
[1763392578499,18.12096,139.17,139.1,12.50188421]
[1763392578701,18.12096,139.17,139.09,12.50188421]
[1763392578702,12.50188421,139.14,139.09,12.50188421]
[1763392578900,18.12096,139.17,139.11,12.50188421]
[1763392579099,30.62284421,139.17,139.12,12.50188421]
[1763392579325,12.50188421,139.16,139.04,0.69]
[1763392579532,18.12096,139.17,139.11,12.50188421]
[1763392579745,12.50188421,139.16,139.04,0.69]
[1763392579912,18.12096,139.17,139.04,0.69]
[1763392580107,18.12096,139.17,139.08,12.50188421]
[1763392580304,12.50188421,139.1,139.03,4.48]
[1763392580502,12.50188421,139.1,139.05,12.50188421]
[1763392580718,12.50188421,139.12,139.07,12.50188421]
[1763392581128,10.3375133,139.18,139.03,4.48]
[1763392581129,18.12096,139.15,139.1,12.50188421]
[1763392581328,18.12096,139.15,139.11,12.50188421]
[1763392581538,4.48,139.18,139.13,12.50188421]
[1763392581848,30.62284421,139.14,139.03,4.48]
[1763392582142,12.50188421,139.11,139.06,12.50188421]
[1763392582515,12.50188421,139.09,139.03,4.48]
[1763392583029,12.50188421,139.09,139.04,12.50188421]
[1763392583418,12.50188421,139.08,139.03,16.98188421]
[1763392583744,18.12096,139.1,139.04,12.50188421]
[1763392583745,12.50188421,139.09,139.04,12.50188421]
[1763392583949,22.60096,139.13,139.08,12.50188421]
[1763392584148,22.60096,139.13,139.09,12.50188421]
[1763392584468,4.48,139.13,139.11,12.50188421]
[1763392584658,12.50188421,139.17,139.11,12.50188421]
[1763392584946,2.0,139.26,139.12,1.40880391]
[1763392584947,5.72994357,139.26,139.12,1.40880391]
[1763392585241,12.50188421,139.22,139.17,12.50188421]
[1763392585410,12.50188421,139.22,139.12,0.69]
[1763392585610,12.50188421,139.2,139.15,12.50188421]
[1763392586020,12.50188421,139.21,139.16,12.50188421]
[1763392586229,12.50188421,139.22,139.17,12.50188421]
[1763392586428,12.50188421,139.22,139.12,0.69]
[1763392586637,12.50188421,139.19,139.09,4.48]
[1763392586949,12.50188421,139.17,139.12,12.50188421]
[1763392587111,22.60096,139.2,139.12,12.50188421]
[1763392587310,12.50188421,139.19,139.14,12.50188421]
[1763392587509,4.48,139.2,139.16,12.50188421]
[1763392587826,4.48,139.24,139.16,12.50188421]
[1763392588027,12.50188421,139.22,139.17,12.50188421]
[1763392588254,12.50188421,139.21,139.16,12.50188421]
[1763392588458,12.50188421,139.22,139.13,0.69]
[1763392588659,12.50188421,139.22,139.17,12.50188421]
[1763392588983,12.50188421,139.21,139.16,12.50188421]
[1763392589150,12.50188421,139.2,139.15,12.50188421]
[1763392589349,30.62284421,139.21,139.15,12.50188421]
[1763392589552,30.62284421,139.21,139.16,12.50188421]
[1763392589747,12.50188421,139.2,139.15,12.50188421]
[1763392589975,18.12096,139.21,139.17,12.50188421]
[1763392590185,18.12096,139.21,139.18,12.50188421]
[1763392590480,30.62284421,139.22,139.17,12.50188421]
[1763392590844,18.12096,139.22,139.18,12.50188421]
[1763392591044,4.48,139.24,139.2,12.50188421]
[1763392591347,16.98188421,139.3,139.23,12.50188421]
[1763392591551,4.48,139.3,139.26,12.50188421]
[1763392591777,12.50188421,139.28,139.23,12.50188421]
[1763392592074,12.50188421,139.27,139.21,12.50188421]
[1763392592246,12.50188421,139.28,139.22,12.50188421]
[1763392592454,12.50188421,139.28,139.23,12.50188421]
[1763392592668,4.48,139.3,139.25,12.50188421]
[1763392592976,12.50188421,139.32,139.27,12.50188421]
[1763392593181,12.50188421,139.32,139.21,9.78882769]
[1763392593477,12.50188421,139.33,139.28,12.50188421]
[1763392593655,12.50188421,139.33,139.17,0.69]
[1763392593656,12.50188421,139.29,139.17,0.69]
[1763392593860,4.77208839,139.32,139.12,0.69]
[1763392593861,12.50188421,139.19,139.12,0.69]
[1763392594051,12.50188421,139.18,139.12,0.69]
[1763392594249,12.50188421,139.17,139.12,0.69]
[1763392594455,12.50188421,139.16,139.1,12.50188421]
[1763392594654,12.50188421,139.13,139.05,0.69]
[1763392594962,0.63,139.17,139.05,12.50188421]
[1763392594963,12.50188421,139.11,139.05,12.50188421]
[1763392595160,12.50188421,139.11,139.03,0.69]
[1763392595161,22.60096,139.15,139.07,12.50188421]
[1763392595479,12.50188421,139.12,139.06,12.50188421]
[1763392595662,12.50188421,139.11,139.05,13.19188421]
[1763392595867,18.12096,139.14,139.05,0.69]
[1763392596065,4.48,139.15,139.08,12.50188421]
[1763392596372,18.12096,139.14,139.06,13.19188421]
[1763392596573,18.12096,139.14,139.06,0.69]
[1763392596778,12.50188421,139.13,139.07,12.50188421]
[1763392597289,12.50188421,139.2,139.12,12.50188421]
[1763392597290,4.48,139.2,139.12,12.50188421]
[1763392597465,12.50188421,139.18,139.13,12.50188421]
[1763392597673,0.63,139.22,139.08,1.41901064]
[1763392597674,12.50188421,139.15,139.08,0.7]
[1763392597866,12.50188421,139.14,139.08,13.20188421]
[1763392598376,12.50188421,139.11,139.05,0.7]
[1763392598567,12.50188421,139.1,139.05,0.7]
[1763392598755,12.50188421,139.12,139.06,12.50188421]
[1763392599203,0.63,139.17,139.07,12.50188421]
[1763392599362,12.50188421,139.15,139.09,12.50188421]
[1763392599556,12.50188421,139.14,139.08,12.50188421]
[1763392599889,12.50188421,139.12,139.04,0.7]
[1763392600092,12.50188421,139.12,139.06,12.50188421]
[1763392600298,22.60096,139.16,139.08,12.50188421]
[1763392600459,12.50188421,139.14,139.08,12.50188421]
[1763392600668,12.50188421,139.15,139.09,13.20188421]
[1763392600861,12.50188421,139.14,139.06,18.12096]
[1763392601084,12.50188421,139.13,139.07,12.50188421]
[1763392601458,12.50188421,139.13,139.07,13.20188421]
[1763392601681,12.50188421,139.11,139.03,5.18]
[1763392601880,12.50188421,139.08,139.03,0.7]
[1763392602187,27.90978769,139.09,138.96,0.8]
[1763392602387,12.50188421,139.03,138.97,13.20188421]
[1763392602693,12.50188421,139.03,138.98,0.7]
[1763392603195,4.48,139.06,138.96,0.1]
[1763392603196,12.50188421,138.99,138.96,0.1]
[1763392603410,12.50188421,138.98,138.96,0.1]
[1763392603774,9.78882769,139.0,138.96,0.1]
[1763392603775,12.50188421,138.97,138.96,0.1]
[1763392604307,0.63,138.99,138.96,0.1]
[1763392604308,0.63,139.05,138.96,0.8]
[1763392604472,12.50188421,139.01,138.96,0.1]
[1763392604668,12.50188421,138.99,138.96,0.1]
[1763392605095,12.50188421,138.98,138.96,0.1]
[1763392605298,12.50188421,138.97,138.96,0.1]
[1763392605483,22.2907119,138.97,138.93,0.1]
[1763392605802,5.01,138.96,138.93,0.1]